bitfinex/quotes_SOLUSD_20240917
["timestamp","ask_amount","ask_price","bid_price","bid_amount"]
[1726594044990,7.60729,133.66,133.62,26.1921]
[1726594045388,0.12549,133.66,133.63,7.4832]
[1726594046071,0.12549,133.66,133.64,7.4827]
[1726594046396,1.30298637,133.68,133.65,7.4821]
[1726594046580,7.4802,133.69,133.65,7.4821]
[1726594046778,7.82768815,133.68,133.65,7.4821]
[1726594047295,15.30828815,133.68,133.65,7.4821]
[1726594047499,7.82768815,133.68,133.65,7.4821]
[1726594048210,15.30828815,133.68,133.65,7.4821]
[1726594050904,24.027864,133.67,133.62,26.193]
[1726594051110,7.4822,133.66,133.63,7.4831]
[1726594051402,24.027864,133.67,133.62,18.7096]
[1726594051403,7.4812,133.67,133.62,18.7096]
[1726594051574,7.82768815,133.68,133.65,7.4818]
[1726594051893,0.12549,133.67,133.63,18.7083]
[1726594052101,7.4828,133.64,133.61,7.4843]
[1726594052275,23.902374,133.67,133.61,7.4843]
[1726594052276,7.4824,133.65,133.61,7.4844]
[1726594053113,18.82979,133.66,133.58,0.7667389]
[1726594053405,23.902374,133.65,133.58,0.7667389]
[1726594054008,0.12549,133.62,133.58,0.7667389]
[1726594054196,7.60989,133.62,133.58,0.7667389]
[1726594055275,7.60989,133.62,133.58,8.2528389]
[1726594055476,0.12549,133.62,133.6,7.485]
[1726594055696,30.12549,133.62,133.59,7.4854]
[1726594055877,30.12549,133.62,133.59,26.1986]
[1726594056212,30.12549,133.62,133.59,18.7132]
[1726594056390,30.12549,133.62,133.59,26.1986]
[1726594056597,30.12549,133.62,133.59,18.7132]
[1726594056598,30.0,133.62,133.59,18.7132]
[1726594056796,30.0,133.62,133.61,7.4844]
[1726594057884,7.4812,133.67,133.62,7.4835]
[1726594058098,15.31085838,133.66,133.62,7.4835]
[1726594058296,7.82925838,133.66,133.62,7.4835]
[1726594058690,0.12549,133.65,133.62,7.4835]
[1726594062014,0.12549,133.65,133.61,26.1943]
[1726594062306,7.60779,133.65,133.61,26.1943]
[1726594062509,7.4833,133.63,133.59,7.4853]
[1726594062717,18.83119,133.65,133.58,0.7667389]
[1726594063012,24.027864,133.65,133.58,0.7667389]
[1726594063585,7.4831,133.64,133.6,7.4849]
[1726594064014,0.12549,133.63,133.6,7.4849]
[1726594064200,30.12549,133.63,133.6,7.4849]
[1726594064399,30.12549,133.63,133.59,18.7136]
[1726594064605,37.60899,133.63,133.59,26.199]
[1726594064821,7.60939,133.62,133.58,8.2526389]
[1726594064994,0.12549,133.61,133.58,8.2526389]
[1726594065196,7.60989,133.61,133.58,0.7667389]
[1726594065424,7.485,133.6,133.58,0.7667389]
[1726594065910,37.485,133.6,133.58,0.7667389]
[1726594066415,30.0,133.6,133.58,0.7667389]
[1726594067807,0.25098,133.59,133.58,0.7667389]
[1726594068206,30.25098,133.59,133.58,0.7667389]
[1726594068706,20.25098,133.59,133.58,0.7667389]
[1726594069812,20.25098,133.59,133.58,8.2528389]
[1726594069991,7.83231121,133.61,133.59,7.4851]
[1726594070191,20.0,133.62,133.59,7.4851]
[1726594070423,9.13558966,133.63,133.58,0.7667389]
[1726594070715,9.13558966,133.63,133.59,18.7128]
[1726594070924,7.4839,133.62,133.59,26.1981]
[1726594071301,16.61928966,133.63,133.59,26.1981]
[1726594071611,7.83114911,133.63,133.61,18.7107]
[1726594071817,7.4825,133.65,133.61,18.7107]
[1726594071818,7.4825,133.65,133.61,26.1946]
[1726594072030,15.31343166,133.65,133.61,26.1946]
[1726594072213,7.4831,133.64,133.6,7.4849]
[1726594072414,7.4833,133.63,133.6,7.7747655]
[1726594072932,7.4834,133.63,133.6,0.2898655]
[1726594073228,7.4834,133.63,133.6,7.7747655]
[1726594073389,7.4829,133.64,133.6,7.7747655]
[1726594073591,23.902374,133.63,133.6,7.7747655]
[1726594073814,7.60889,133.63,133.6,7.7747655]
[1726594074194,7.4844,133.61,133.6,0.2898655]
[1726594075116,51.386774,133.61,133.6,0.2898655]
[1726594075412,81.386774,133.61,133.6,0.2898655]
[1726594079602,85.2672073,133.61,133.6,0.2898655]
[1726594079911,81.386774,133.61,133.6,0.2898655]
[1726594080215,81.261284,133.61,133.6,0.2898655]
[1726594080595,81.386774,133.61,133.6,0.2898655]
[1726594082422,89.22102957,133.61,133.6,0.2898655]
[1726594087524,107.93212957,133.61,133.6,0.2898655]
[1726594087830,7.61099,133.59,133.58,0.6075252]
[1726594088011,31.387874,133.59,133.58,0.6075252]
[1726594088414,7.4872,133.57,133.53,26.211]
[1726594089325,43.902374,133.58,133.52,14.3662085]
[1726594089624,43.902374,133.58,133.52,6.8768085]
[1726594089933,7.4875,133.56,133.52,33.0896085]
[1726594090102,7.4875,133.56,133.52,25.6005085]
[1726594090298,7.4875,133.56,133.52,33.0896085]
[1726594090912,23.902374,133.55,133.52,0.3589085]
[1726594091124,43.902374,133.58,133.52,0.3589085]
[1726594091125,7.4887,133.54,133.52,0.3589085]
[1726594091323,62.619074,133.58,133.52,0.3589085]
[1726594092109,23.776884,133.54,133.52,0.3589085]
[1726594092509,31.265484,133.54,133.52,0.3589085]
[1726594092801,23.776884,133.54,133.52,0.3589085]
[1726594093022,31.265384,133.54,133.52,0.3589085]
[1726594094549,23.776884,133.54,133.52,0.3589085]
[1726594095340,31.265284,133.54,133.52,0.3589085]
[1726594096743,7.61439,133.53,133.52,0.3589085]
[1726594097046,31.391274,133.53,133.52,0.3589085]
[1726594097233,61.391274,133.53,133.52,0.3589085]
[1726594097936,53.902374,133.53,133.52,0.3589085]
[1726594098535,53.776884,133.53,133.52,0.3589085]
[1726594099427,23.776884,133.53,133.52,0.3589085]
[1726594102121,61.265784,133.53,133.52,0.3589085]
[1726594102413,53.776884,133.53,133.52,0.3589085]
[1726594102929,61.391274,133.53,133.52,0.3589085]
[1726594103230,89.22830834,133.53,133.52,0.3589085]
[1726594105728,107.95060834,133.53,133.52,0.3589085]
[1726594106948,107.95060834,133.53,133.5,0.2486167]
[1726594106949,51.392374,133.51,133.5,0.2486167]
[1726594108149,81.392374,133.51,133.5,0.2486167]
[1726594111842,51.394074,133.48,133.47,0.3589085]
[1726594112423,52.70074956,133.48,133.47,0.3589085]
[1726594113040,82.70074956,133.48,133.47,0.3589085]
[1726594113427,75.20904956,133.48,133.47,0.3589085]
[1726594113630,81.74316056,133.48,133.47,0.3589085]
[1726594114149,51.74316056,133.48,133.47,0.3589085]
[1726594114737,59.23486056,133.48,133.47,0.3589085]
[1726594114949,51.74316056,133.48,133.47,0.3589085]
[1726594116057,59.23486056,133.48,133.47,0.3589085]
[1726594116231,31.74316056,133.48,133.47,0.3589085]
[1726594118662,61.74316056,133.48,133.47,0.3589085]
[1726594119735,69.23486056,133.48,133.47,0.3589085]
[1726594120657,89.23486056,133.48,133.47,0.3589085]
[1726594125469,89.23486056,133.48,133.42,16.1911]
[1726594125470,7.4936,133.45,133.42,16.1911]
[1726594125666,53.902374,133.46,133.43,7.4944]
[1726594126037,53.902374,133.46,133.44,7.4937]
[1726594126264,37.83531459,133.46,133.44,18.7349]
[1726594126583,23.776884,133.49,133.46,7.4925]
[1726594126865,30.0,133.47,133.46,7.4925]
[1726594127444,31.61045245,133.49,133.46,7.4925]
[1726594129466,31.61045245,133.49,133.45,0.1084274]
[1726594129691,31.61045245,133.49,133.48,7.4917]
[1726594129884,7.83356845,133.49,133.48,7.4917]
[1726594130063,7.489,133.53,133.48,7.4917]
[1726594130257,7.83515811,133.51,133.48,7.4917]
[1726594131384,7.83515811,133.51,133.49,7.4911]
[1726594131572,30.0,133.5,133.49,7.4911]
[1726594131774,7.83515811,133.51,133.49,7.4911]
[1726594132376,7.83515811,133.51,133.48,26.2204]
[1726594132773,43.902374,133.52,133.48,26.2204]
[1726594133666,51.391874,133.52,133.48,26.2204]
[1726594134496,43.902374,133.52,133.45,18.8410274]
[1726594134680,23.902374,133.5,133.47,7.4919]
[1726594135191,0.12549,133.5,133.48,7.4917]
[1726594135391,0.12549,133.51,133.48,7.4917]
[1726594136773,0.12549,133.51,133.47,26.2226]
[1726594137100,23.776884,133.5,133.47,26.2226]
[1726594141376,23.902374,133.51,133.48,7.4916]
[1726594141978,31.392474,133.51,133.48,7.4916]
[1726594143072,7.4907,133.5,133.47,18.7305]
[1726594143273,23.776884,133.49,133.47,18.7305]
[1726594143798,0.12549,133.48,133.45,7.6016274]
[1726594144185,7.61729,133.48,133.45,7.6016274]
[1726594144388,23.776884,133.47,133.45,7.6016274]
[1726594144889,23.776884,133.47,133.45,0.1084274]
[1726594146295,23.776884,133.47,133.45,7.6017274]
[1726594148082,23.902374,133.48,133.45,7.6017274]
[1726594149582,31.394174,133.48,133.45,7.6017274]
[1726594151106,23.776884,133.46,133.45,0.1084274]
[1726594151283,61.395174,133.46,133.45,0.1084274]
[1726594151485,81.395174,133.46,133.45,0.1084274]
[1726594153691,89.23805079,133.46,133.45,0.1084274]
[1726594157189,93.11848409,133.46,133.45,0.1084274]
[1726594157512,89.23805079,133.46,133.45,0.1084274]
[1726594158915,37.84287679,133.46,133.45,0.1084274]
[1726594159291,30.0,133.46,133.45,7.6018274]
[1726594160314,53.776884,133.46,133.45,7.6018274]
[1726594160517,23.776884,133.46,133.45,7.6018274]
[1726594160722,23.776884,133.46,133.45,0.1084274]
[1726594165617,23.902374,133.46,133.45,0.1084274]
[1726594166319,13.02725346,133.49,133.45,0.1084274]
[1726594166520,9.14682016,133.49,133.45,37.76643222]
[1726594166729,11.3702333,133.52,133.48,7.4917]
[1726594166898,30.0,133.49,133.47,7.4921]
[1726594167404,30.0,133.49,133.48,18.7293]
[1726594168526,30.0,133.49,133.45,41.3781274]
[1726594168694,37.4916,133.49,133.46,7.4928]
[1726594169098,7.4916,133.49,133.46,7.4928]
[1726594169300,31.268584,133.48,133.45,41.3781274]
[1726594170126,23.776884,133.48,133.45,48.8714274]
[1726594171595,0.12549,133.47,133.45,41.3781274]
[1726594171797,23.902374,133.47,133.45,41.3781274]
[1726594173416,23.902374,133.47,133.45,34.9059274]
[1726594173727,23.902374,133.47,133.45,42.3992274]
[1726594173932,23.902374,133.47,133.45,26.3339274]
[1726594174608,23.902374,133.47,133.45,0.1084274]
[1726594175208,23.902374,133.47,133.45,7.6017274]
[1726594175604,23.902374,133.48,133.45,0.1084274]
[1726594175931,23.902374,133.46,133.45,0.1084274]
[1726594176437,31.395174,133.46,133.45,0.1084274]
[1726594176927,23.902374,133.46,133.45,0.1084274]
[1726594184334,31.395174,133.46,133.45,0.1084274]
[1726594184841,81.395174,133.46,133.45,0.1084274]
[1726594187344,82.70077477,133.46,133.45,0.1084274]
[1726594187641,82.70077477,133.46,133.42,0.2486167]
[1726594187642,31.395774,133.45,133.42,0.5098233]
[1726594187848,61.395774,133.45,133.42,0.6151095]
[1726594189742,53.902374,133.45,133.43,7.4944]
[1726594189936,23.902374,133.45,133.44,7.494]
[1726594190247,23.902374,133.45,133.44,18.735]
[1726594191035,23.902374,133.45,133.43,7.4943]
[1726594191928,23.902374,133.45,133.42,0.6151095]
[1726594192129,31.396174,133.45,133.42,0.6151095]
[1726594192426,39.23734402,133.45,133.42,0.6151095]
[1726594194321,31.74354402,133.45,133.42,0.6151095]
[1726594195539,39.23704402,133.45,133.42,0.6151095]
[1726594196849,39.23704402,133.45,133.42,8.1101095]
[1726594198152,39.23704402,133.45,133.42,0.6151095]
[1726594200035,7.494,133.44,133.42,0.6151095]
[1726594200243,31.74354402,133.45,133.42,0.6151095]
[1726594200244,31.396874,133.43,133.42,0.6151095]
[1726594200453,51.396874,133.43,133.42,0.6151095]
[1726594200762,81.396874,133.43,133.42,0.6151095]
[1726594201253,85.2773073,133.43,133.42,0.6151095]
[1726594201452,7.4968,133.39,133.38,0.2612066]
[1726594201654,31.399174,133.39,133.38,0.2612066]
[1726594201953,51.399174,133.39,133.38,0.2612066]
[1726594202655,109.25083525,133.39,133.38,0.2612066]
[1726594202826,59.25083525,133.39,133.38,0.2612066]
[1726594203024,89.25083525,133.39,133.38,0.2612066]
[1726594204066,37.85166125,133.39,133.38,0.2612066]
[1726594204233,37.85166125,133.39,133.38,7.7585066]
[1726594204430,30.0,133.39,133.38,7.7585066]
[1726594204862,7.84839653,133.43,133.4,7.4959]
[1726594205037,7.84839653,133.43,133.42,7.4951]
[1726594205239,37.84839653,133.43,133.42,7.4951]
[1726594205843,7.84839653,133.43,133.42,7.4951]
[1726594206449,7.84839653,133.43,133.41,26.2345]
[1726594206640,23.902374,133.42,133.38,6.4709066]
[1726594207175,7.84839653,133.43,133.39,1.4992628]
[1726594207547,31.62528053,133.43,133.42,7.4951]
[1726594207743,7.84839653,133.43,133.42,7.4951]
[1726594208262,7.4923,133.47,133.43,7.4944]
[1726594208467,7.83844927,133.46,133.43,7.4944]
[1726594208759,7.83844927,133.46,133.38,30.11422616]
[1726594208760,7.83844927,133.46,133.42,18.7375]
[1726594208959,23.776884,133.45,133.42,26.2325]
[1726594209459,23.902374,133.45,133.43,7.4945]
[1726594209654,23.902374,133.45,133.42,26.2324]
[1726594209858,23.902374,133.45,133.42,18.7375]
[1726594210033,23.902374,133.45,133.44,7.494]
[1726594210230,23.902374,133.45,133.42,18.7375]
[1726594210639,23.902374,133.45,133.43,7.4944]
[1726594212155,23.902374,133.45,133.42,18.7375]
[1726594212360,31.395874,133.45,133.42,18.7375]
[1726594212736,23.902374,133.45,133.42,26.2325]
[1726594213138,23.902374,133.45,133.43,7.4945]
[1726594213656,23.902374,133.45,133.42,18.7375]
[1726594213843,23.902374,133.45,133.43,7.4942]
[1726594214038,23.776884,133.45,133.44,7.494]
[1726594214456,7.83844927,133.46,133.45,7.4934]
[1726594214695,11.3706333,133.51,133.47,7.4919]
[1726594214860,30.0,133.48,133.47,7.4919]
[1726594215155,7.82839397,133.5,133.47,7.4919]
[1726594215364,7.82839397,133.5,133.48,7.4917]
[1726594216758,23.902374,133.49,133.48,7.4917]
[1726594217065,7.82839397,133.5,133.48,7.4917]
[1726594217576,7.82839397,133.5,133.47,7.4921]
[1726594217745,0.12549,133.49,133.45,6.12]
[1726594217944,7.61679,133.49,133.45,13.613]
[1726594218257,23.902374,133.49,133.46,7.4926]
[1726594221249,23.902374,133.49,133.47,7.4923]
[1726594221647,7.82839397,133.5,133.48,7.4917]
[1726594222773,7.82839397,133.5,133.47,26.2224]
[1726594223572,7.82839397,133.5,133.47,18.7304]
[1726594223882,7.82839397,133.5,133.47,26.2223]
[1726594224381,7.82839397,133.5,133.48,7.4916]
[1726594225278,7.82839397,133.5,133.47,26.2225]
[1726594225576,23.776884,133.49,133.47,26.2225]
[1726594227561,23.776884,133.49,133.46,7.4926]
[1726594228080,23.776884,133.49,133.46,26.2246]
[1726594228454,7.4927,133.47,133.43,41.2449]
[1726594228679,0.12549,133.46,133.43,15.0152]
[1726594228982,0.12549,133.46,133.44,7.4938]
[1726594229858,0.12549,133.46,133.43,22.5095]
[1726594230066,23.776884,133.47,133.45,7.4932]
[1726594230481,23.776884,133.47,133.46,7.4928]
[1726594230857,23.776884,133.47,133.45,7.4932]
[1726594231480,23.776884,133.47,133.44,26.2283]
[1726594233270,7.82626411,133.48,133.46,7.4925]
[1726594233667,23.902374,133.51,133.47,7.4923]
[1726594233871,9.05700713,133.52,133.48,7.4916]
[1726594233872,7.81924744,133.5,133.48,7.4916]
[1726594234057,7.7511066,133.52,133.48,7.4916]
[1726594234384,15.56940065,133.52,133.48,7.4916]
[1726594234772,7.4901,133.51,133.47,7.4921]
[1726594234981,8.07950065,133.52,133.46,18.7318]
[1726594234982,7.4912,133.49,133.46,18.7318]
[1726594235278,23.776884,133.48,133.46,18.7318]
[1726594235469,23.776884,133.49,133.46,18.7318]
[1726594235667,0.12549,133.48,133.46,18.7318]
[1726594235873,23.776884,133.49,133.46,18.7318]
[1726594236277,23.776884,133.5,133.47,7.4923]
[1726594236670,0.12549,133.49,133.46,26.2246]
[1726594238884,23.776884,133.5,133.47,7.4922]
[1726594239389,8.07950065,133.52,133.51,7.49]
[1726594239566,0.2612066,133.52,133.51,51.1225122]
[1726594239889,0.2612066,133.56,133.55,14.0658]
[1726594240181,0.2612066,133.56,133.55,32.7853]
[1726594241887,0.2612066,133.56,133.54,7.4882]
[1726594242190,0.2612066,133.56,133.55,7.4878]
[1726594242779,0.2612066,133.56,133.55,8.98518695]
[1726594242969,0.2612066,133.56,133.55,7.4878]
[1726594243584,0.2612066,133.56,133.55,8.98504918]
[1726594243974,0.2612066,133.56,133.55,7.4878]
[1726594247866,0.2612066,133.56,133.55,8.98512558]
[1726594250290,0.2612066,133.56,133.55,7.4878]
[1726594252972,0.2612066,133.56,133.55,8.98519067]
[1726594253591,0.2612066,133.56,133.55,32.61770287]
[1726594254481,0.2612066,133.56,133.55,31.1203122]
[1726594254789,0.2612066,133.6,133.55,45.1647122]
[1726594254990,0.2612066,133.6,133.59,31.1180122]
[1726594255195,0.2612066,133.6,133.59,32.61456635]
[1726594255686,0.2612066,133.6,133.59,31.1180122]
[1726594257081,0.2612066,133.6,133.59,7.4855]
[1726594258282,0.2612066,133.6,133.59,8.98235256]
[1726594259721,0.2612066,133.6,133.59,7.4855]
[1726594262229,0.2612066,133.6,133.55,34.0524]
[1726594262376,0.2612066,133.6,133.55,18.7183]
[1726594262888,23.776884,133.57,133.55,18.7183]
[1726594263076,23.776884,133.57,133.55,26.2061]
[1726594263380,0.12549,133.56,133.52,18.7235]
[1726594263582,0.12549,133.56,133.54,7.4883]
[1726594264414,0.12549,133.56,133.53,7.4888]
[1726594264794,0.12549,133.56,133.54,7.4881]
[1726594265000,0.12549,133.56,133.53,7.4888]
[1726594265311,0.12549,133.56,133.49,6.6176]
[1726594265603,23.902374,133.53,133.46,6.6409066]
[1726594265807,23.902374,133.53,133.49,18.7269]
[1726594266012,0.12549,133.53,133.51,7.4896]
[1726594266485,23.776884,133.52,133.51,7.4896]
[1726594266682,23.776884,133.52,133.5,7.4906]
[1726594268113,23.776884,133.52,133.51,7.49]
[1726594268484,0.12549,133.54,133.53,7.4889]
[1726594268684,7.81196297,133.55,133.5,1.49807146]
[1726594268908,7.81196297,133.55,133.53,7.4885]
[1726594269113,7.81196297,133.55,133.54,7.4883]
[1726594269289,27.93745297,133.55,133.54,7.4883]
[1726594269690,27.93745297,133.55,133.53,26.2107]
[1726594271818,27.93745297,133.55,133.53,18.7219]
[1726594272017,23.902374,133.54,133.47,23.6325122]
[1726594272317,31.390774,133.54,133.46,6.6409066]
[1726594272615,23.776884,133.52,133.46,6.6409066]
[1726594272909,0.12549,133.51,133.48,7.4915]
[1726594273121,0.12549,133.51,133.48,26.2205]
[1726594273290,7.61559,133.51,133.48,18.729]
[1726594273790,23.776884,133.5,133.48,18.729]
[1726594274004,23.776884,133.5,133.47,7.4919]
[1726594274202,23.776884,133.5,133.48,7.4917]
[1726594274414,23.902374,133.51,133.48,7.4917]
[1726594276001,7.81440334,133.5,133.48,7.4917]
[1726594276190,7.81440334,133.5,133.49,7.4911]
[1726594276701,0.12549,133.51,133.5,7.4906]
[1726594277416,0.12549,133.51,133.49,26.2187]
[1726594277720,7.81351937,133.52,133.5,1.4982278]
[1726594277889,16.2337,133.57,133.55,7.4877]
[1726594278092,1.30444688,133.57,133.5,1.4982278]
[1726594278297,7.81081453,133.56,133.55,7.4878]
[1726594278496,15.62730916,133.6,133.56,7.4871]
[1726594278719,30.0,133.57,133.56,7.4871]
[1726594278893,7.80990487,133.59,133.58,7.4861]
[1726594279219,0.2612066,133.6,133.58,7.4861]
[1726594279400,8.06981908,133.6,133.57,26.2024]
[1726594279589,15.55481908,133.6,133.57,18.7159]
[1726594279793,15.55481908,133.6,133.49,44.21531209]
[1726594279794,8.06981908,133.6,133.54,26.2083]
[1726594279995,31.388074,133.59,133.54,26.2083]
[1726594280402,7.4862,133.58,133.54,26.2083]
[1726594280712,23.902374,133.57,133.54,26.2083]
[1726594281106,7.4857,133.59,133.54,26.2083]
[1726594281107,23.902374,133.58,133.54,26.2083]
[1726594281615,23.902374,133.58,133.55,7.4877]
[1726594282418,0.12549,133.58,133.57,7.4867]
[1726594282605,20.0,133.59,133.57,7.4867]
[1726594283423,20.0,133.59,133.56,26.2042]
[1726594284906,23.902374,133.58,133.55,7.4876]
[1726594285818,23.902374,133.58,133.53,18.7212]
[1726594286040,7.4868,133.57,133.53,26.21]
[1726594286325,20.0,133.57,133.52,7.4894]
[1726594286499,23.902374,133.56,133.49,6.4009]
[1726594286696,23.902374,133.56,133.54,7.488]
[1726594287399,8.06981908,133.6,133.55,7.4878]
[1726594287594,23.776884,133.58,133.56,7.4871]
[1726594288133,0.12549,133.57,133.55,7.4876]
[1726594288713,0.12549,133.57,133.54,26.2088]
[1726594288919,23.776884,133.56,133.54,18.7207]
[1726594290330,23.776884,133.56,133.49,6.4009]
[1726594290539,0.12549,133.55,133.53,7.4889]
[1726594290698,0.12549,133.55,133.54,7.4883]
[1726594291011,23.776884,133.56,133.53,26.2109]
[1726594291828,0.12549,133.55,133.53,18.7221]
[1726594292408,0.12549,133.55,133.53,26.2109]
[1726594294732,0.12549,133.55,133.54,7.4883]
[1726594295529,0.12549,133.55,133.53,26.2108]
[1726594296725,0.12549,133.55,133.54,7.4883]
[1726594298531,0.12549,133.55,133.53,18.7221]
[1726594298825,23.902374,133.52,133.49,7.4908]
[1726594299239,31.391874,133.52,133.49,7.4908]
[1726594299928,39.19190224,133.52,133.49,7.4908]
[1726594300913,31.70240224,133.52,133.49,7.4908]
[1726594301110,31.57691224,133.52,133.51,7.49]
[1726594301312,7.80002824,133.52,133.51,26.2151]
[1726594301529,23.902374,133.55,133.53,26.2107]
[1726594301820,31.70030803,133.55,133.53,26.2109]
[1726594302418,31.70030803,133.55,133.53,18.7222]
[1726594303051,39.18820803,133.55,133.51,7.4898]
[1726594303527,31.70030803,133.55,133.52,7.4894]
[1726594305637,39.18830803,133.55,133.51,7.4898]
[1726594305833,39.18830803,133.55,133.52,7.4893]
[1726594306035,31.70030803,133.55,133.52,7.4893]
[1726594306929,0.12549,133.51,133.48,7.4912]
[1726594307244,23.902374,133.51,133.48,26.2205]
[1726594310737,23.902374,133.51,133.49,7.491]
[1726594310925,23.902374,133.51,133.5,7.4906]
[1726594311122,23.776884,133.51,133.5,7.4906]
[1726594311335,7.4891,133.53,133.5,7.4906]
[1726594311530,23.902374,133.52,133.5,7.4906]
[1726594312123,31.69640264,133.52,133.5,7.4906]
[1726594312935,31.69640264,133.52,133.49,7.4909]
[1726594313436,31.69640264,133.52,133.48,18.7293]
[1726594313645,23.902374,133.5,133.48,18.7293]
[1726594313823,23.902374,133.5,133.48,26.2208]
[1726594314221,0.12549,133.5,133.48,26.2208]
[1726594315352,0.12549,133.48,133.46,0.2612066]
[1726594315529,0.12549,133.5,133.46,0.2612066]
[1726594316042,31.394674,133.47,133.46,0.2612066]
[1726594318233,31.394674,133.47,133.42,18.9979066]
[1726594318234,7.4945,133.43,133.42,0.2612066]
[1726594318432,23.902374,133.43,133.42,0.2612066]
[1726594320438,23.776884,133.43,133.42,7.7563066]
[1726594321024,23.902374,133.43,133.42,0.2612066]
[1726594321451,23.776884,133.43,133.42,0.2612066]
[1726594321634,0.12549,133.45,133.42,7.7561066]
[1726594322253,0.12549,133.45,133.43,7.4944]
[1726594322745,0.12549,133.45,133.42,0.2612066]
[1726594323650,7.79753109,133.46,133.44,7.494]
[1726594324040,15.29043109,133.46,133.42,26.4926066]
[1726594324241,7.4938,133.45,133.42,0.2612066]
[1726594324934,23.902374,133.44,133.42,0.2612066]
[1726594325637,7.494,133.44,133.42,0.2612066]
[1726594325847,23.902374,133.43,133.42,0.2612066]
[1726594326841,7.79753109,133.46,133.42,7.7558066]
[1726594327048,15.29043109,133.46,133.42,7.7558066]
[1726594328161,0.12549,133.44,133.42,7.7558066]
[1726594328341,0.12549,133.44,133.42,0.2612066]
[1726594329870,7.61949,133.44,133.42,0.2612066]
[1726594330035,0.12549,133.44,133.42,0.2612066]
[1726594330236,31.396874,133.43,133.42,0.2612066]
[1726594332657,39.20059703,133.43,133.42,0.2612066]
[1726594335569,69.20059703,133.43,133.42,0.2612066]
[1726594336070,39.20059703,133.43,133.42,0.2612066]
[1726594337678,7.80372303,133.43,133.42,0.2612066]
[1726594337966,7.493,133.46,133.42,7.7563066]
[1726594338164,7.80139419,133.44,133.42,7.7563066]
[1726594338545,7.80139419,133.44,133.43,7.4945]
[1726594338767,7.4925,133.47,133.43,7.4945]
[1726594338948,7.80044604,133.46,133.43,7.4945]
[1726594339462,15.29344604,133.46,133.42,7.7561066]
[1726594340070,23.902374,133.45,133.42,7.7561066]
[1726594341877,7.494,133.44,133.42,0.2612066]
[1726594342163,23.902374,133.43,133.42,0.2612066]
[1726594342877,31.396874,133.43,133.42,0.2612066]
[1726594344575,23.902374,133.43,133.42,0.2612066]
[1726594345071,31.396874,133.43,133.42,0.2612066]
[1726594345455,23.902374,133.43,133.42,0.2612066]
[1726594345867,23.902374,133.43,133.42,7.7563066]
[1726594346279,23.902374,133.43,133.42,26.4941066]
[1726594346869,23.902374,133.43,133.42,18.9990066]
[1726594347072,23.776884,133.43,133.42,26.4941066]
[1726594347254,15.29334604,133.46,133.42,26.4941066]
[1726594348474,23.902374,133.45,133.42,26.4941066]
[1726594349454,23.776884,133.43,133.42,26.4941066]
[1726594349862,23.902374,133.43,133.42,0.2612066]
[1726594350073,31.396874,133.43,133.42,0.2612066]
[1726594350978,23.902374,133.4,133.38,0.2612066]
[1726594351160,31.398774,133.4,133.38,0.2612066]
[1726594351555,7.4968,133.39,133.38,0.2612066]
[1726594351879,31.399174,133.39,133.38,0.2612066]
[1726594354080,23.902374,133.39,133.38,0.2612066]
[1726594355479,31.399174,133.39,133.38,0.2612066]
[1726594355882,31.401374,133.35,133.34,0.5098233]
[1726594356767,20.4776333,133.37,133.3,0.2612066]
[1726594356768,23.902374,133.31,133.3,0.2612066]
[1726594357299,31.403674,133.31,133.3,0.2612066]
[1726594357956,31.403674,133.31,133.24,18.7623]
[1726594357957,23.902374,133.31,133.26,0.2486167]
[1726594358166,73.902374,133.3,133.29,0.3211814]
[1726594358368,0.12549,133.27,133.26,0.2486167]
[1726594358561,23.902374,133.27,133.26,0.2486167]
[1726594359174,37.5023,133.3,133.27,7.5035]
[1726594359175,23.902374,133.29,133.27,7.5035]
[1726594359485,30.0,133.28,133.27,7.5035]
[1726594359807,30.0,133.28,133.26,7.7526167]
[1726594360458,23.776884,133.27,133.26,7.7526167]
[1726594360658,30.0,133.27,133.26,7.7526167]
[1726594362083,30.0,133.27,133.26,23.2038167]